[Event "Early-Titled-Tuesday-Blitz-March-19-2024"]
[Site "Chess.com"]
[Date "2024.03.19"]
[Round "9"]
[White "Jahonas"]
[Black "Juicy_Fork"]
[Result "1-0"]
[WhiteElo "2351"]
[BlackElo "2511"]
[TimeControl "180+1"]
[EndTime "9:44:22 PDT"]
[Termination "Jahonas won by checkmate"]

1. d4 {[%clk 0:03:00.9]} 1... Nf6 {[%clk 0:02:59.8]} 2. Nf3 {[%clk 0:03:01.5]}
2... d5 {[%clk 0:02:58.7]} 3. c3 {[%clk 0:03:01.8]} 3... e6 {[%clk 0:02:58.8]}
4. Bf4 {[%clk 0:03:02]} 4... c5 {[%clk 0:02:58.9]} 5. e3 {[%clk 0:03:02]} 5...
Nc6 {[%clk 0:02:58]} 6. Be2 {[%clk 0:03:00.8]} 6... Bd6 {[%clk 0:02:58.1]} 7.
Bg3 {[%clk 0:03:00.2]} 7... O-O {[%clk 0:02:57.4]} 8. Nbd2 {[%clk 0:03:00.3]}
8... Re8 {[%clk 0:02:50.3]} 9. O-O {[%clk 0:03:00.3]} 9... e5 {[%clk 0:02:49.5]}
10. dxe5 {[%clk 0:02:55.5]} 10... Nxe5 {[%clk 0:02:50.4]} 11. Nxe5 {[%clk
0:02:54.7]} 11... Bxe5 {[%clk 0:02:51.3]} 12. Bf3 {[%clk 0:02:42]} 12... Bxg3
{[%clk 0:02:46.5]} 13. hxg3 {[%clk 0:02:41.1]} 13... Bf5 {[%clk 0:02:46.7]} 14.
Qb3 {[%clk 0:02:37.3]} 14... Ne4 {[%clk 0:02:44.2]} 15. Nxe4 {[%clk 0:02:31.8]}
15... dxe4 {[%clk 0:02:45.1]} 16. Be2 {[%clk 0:02:31.2]} 16... Qe7 {[%clk
0:02:39]} 17. Rad1 {[%clk 0:02:22.5]} 17... a6 {[%clk 0:02:33.6]} 18. Qd5 {[%clk
0:02:17.7]} 18... Bg6 {[%clk 0:02:19.3]} 19. Qd6 {[%clk 0:02:13.4]} 19... Qg5
{[%clk 0:01:25.2]} 20. Qc7 {[%clk 0:01:24.1]} 20... b5 {[%clk 0:01:13.2]} 21.
Rd7 {[%clk 0:01:16.5]} 21... Rac8 {[%clk 0:00:57]} 22. Qb7 {[%clk 0:01:07.2]}
22... Qf6 {[%clk 0:00:42.1]} 23. Rfd1 {[%clk 0:01:02.5]} 23... b4 {[%clk
0:00:17.4]} 24. R1d6 {[%clk 0:01:01.5]} 24... Qe5 {[%clk 0:00:15.9]} 25. Bc4
{[%clk 0:00:56]} 25... bxc3 {[%clk 0:00:13.5]} 26. bxc3 {[%clk 0:00:55.3]} 26...
Qxc3 {[%clk 0:00:11.9]} 27. Bxf7+ {[%clk 0:00:52.1]} 27... Bxf7 {[%clk
0:00:11.6]} 28. Rxf7 {[%clk 0:00:52]} 28... Qa1+ {[%clk 0:00:10.8]} 29. Kh2
{[%clk 0:00:49.4]} 29... Qe5 {[%clk 0:00:11.1]} 30. Rdd7 {[%clk 0:00:45.6]}
30... Rb8 {[%clk 0:00:03.7]} 31. Rxg7+ {[%clk 0:00:45]} 31... Kh8 {[%clk
0:00:03.1]} 32. Rxh7+ {[%clk 0:00:45.1]} 32... Kg8 {[%clk 0:00:03.8]} 33. Rdg7+
{[%clk 0:00:45.3]} 33... Kf8 {[%clk 0:00:03.7]} 34. Qf7# {[%clk 0:00:45.5]} 1-0

[Event "Early-Titled-Tuesday-Blitz-March-19-2024"]
[Site "Chess.com"]
[Date "2024.03.19"]
[Round "9"]
[White "Viktor_Poddubnyi"]
[Black "Horokoskii"]
[Result "0-1"]
[WhiteElo "2289"]
[BlackElo "2165"]
[TimeControl "180+1"]
[EndTime "9:44:23 PDT"]
[Termination "Horokoskii won by resignation"]

1. e4 {[%clk 0:03:00.9]} 1... c5 {[%clk 0:02:49.5]} 2. Nf3 {[%clk 0:03:00.6]}
2... d6 {[%clk 0:02:49.1]} 3. d4 {[%clk 0:03:01.2]} 3... cxd4 {[%clk 0:02:49.8]}
4. Nxd4 {[%clk 0:03:01.9]} 4... Nf6 {[%clk 0:02:49.8]} 5. Nc3 {[%clk 0:03:02.5]}
5... g6 {[%clk 0:02:47.8]} 6. Be3 {[%clk 0:03:02.2]} 6... Nc6 {[%clk 0:02:47.8]}
7. f3 {[%clk 0:03:01.2]} 7... h5 {[%clk 0:02:45.4]} 8. Qd2 {[%clk 0:03:01.3]}
8... Nxd4 {[%clk 0:02:43.5]} 9. Bxd4 {[%clk 0:03:02.2]} 9... Bh6 {[%clk
0:02:43.1]} 10. Be3 {[%clk 0:02:46.6]} 10... Bxe3 {[%clk 0:02:42.3]} 11. Qxe3
{[%clk 0:02:47.5]} 11... Be6 {[%clk 0:02:42.6]} 12. Bb5+ {[%clk 0:02:37.3]}
12... Kf8 {[%clk 0:02:42.4]} 13. Ba4 {[%clk 0:02:24.2]} 13... Qa5 {[%clk
0:02:40.9]} 14. O-O {[%clk 0:02:12.7]} 14... Rc8 {[%clk 0:02:40.1]} 15. Bb3
{[%clk 0:02:12.1]} 15... Bc4 {[%clk 0:02:33.3]} 16. Rfe1 {[%clk 0:02:07.1]}
16... a6 {[%clk 0:02:28.8]} 17. Rad1 {[%clk 0:01:48.9]} 17... Kg7 {[%clk
0:02:22.6]} 18. h3 {[%clk 0:01:35.3]} 18... Bxb3 {[%clk 0:02:22.4]} 19. axb3
{[%clk 0:01:34.9]} 19... Qc5 {[%clk 0:02:20.9]} 20. Kf2 {[%clk 0:01:16]} 20...
h4 {[%clk 0:02:15.4]} 21. Rd2 {[%clk 0:01:06.3]} 21... Nh5 {[%clk 0:01:52]} 22.
Qxc5 {[%clk 0:00:57.3]} 22... Rxc5 {[%clk 0:01:50.8]} 23. Nd5 {[%clk 0:00:57.3]}
23... e6 {[%clk 0:01:37.8]} 24. Ne3 {[%clk 0:00:49.4]} 24... Rd8 {[%clk
0:01:32.2]} 25. Red1 {[%clk 0:00:49.4]} 25... Nf4 {[%clk 0:01:24]} 26. Rxd6
{[%clk 0:00:45.4]} 26... Rxd6 {[%clk 0:01:17.3]} 27. Rxd6 {[%clk 0:00:46.3]}
27... Rc7 {[%clk 0:01:15]} 28. c3 {[%clk 0:00:36.6]} 28... Nh5 {[%clk
0:01:13.6]} 29. Nc4 {[%clk 0:00:30.6]} 29... Nf4 {[%clk 0:01:03.1]} 30. Ne5
{[%clk 0:00:23.4]} 30... g5 {[%clk 0:01:02.8]} 31. Nd3 {[%clk 0:00:20.7]} 31...
Ng6 {[%clk 0:01:02]} 32. Ke3 {[%clk 0:00:20.8]} 32... Kf6 {[%clk 0:00:54.3]} 33.
Rb6 {[%clk 0:00:20.6]} 33... Ne7 {[%clk 0:00:47.4]} 34. b4 {[%clk 0:00:20.5]}
34... Nc8 {[%clk 0:00:44.4]} 0-1

[Event "Early-Titled-Tuesday-Blitz-March-19-2024"]
[Site "Chess.com"]
[Date "2024.03.19"]
[Round "9"]
[White "andrzej"]
[Black "bobo_panda"]
[Result "1-0"]
[WhiteElo "2516"]
[BlackElo "2347"]
[TimeControl "180+1"]
[EndTime "9:44:25 PDT"]
[Termination "andrzej won by checkmate"]

1. e4 {[%clk 0:03:00.9]} 1... e6 {[%clk 0:02:59.8]} 2. d4 {[%clk 0:03:00.9]}
2... d5 {[%clk 0:02:59.4]} 3. Nc3 {[%clk 0:03:01.5]} 3... Nf6 {[%clk 0:02:59.3]}
4. e5 {[%clk 0:03:02.1]} 4... Nfd7 {[%clk 0:02:59.5]} 5. f4 {[%clk 0:03:02.8]}
5... c5 {[%clk 0:03:00.1]} 6. Nf3 {[%clk 0:03:03.4]} 6... Nc6 {[%clk 0:03:00.7]}
7. Be3 {[%clk 0:03:04.1]} 7... a6 {[%clk 0:03:01.3]} 8. a3 {[%clk 0:03:03.5]}
8... b5 {[%clk 0:03:01.6]} 9. Bd3 {[%clk 0:03:00.8]} 9... Qa5 {[%clk 0:02:59.7]}
10. O-O {[%clk 0:02:55.8]} 10... cxd4 {[%clk 0:02:52.9]} 11. Nxd4 {[%clk
0:02:55.3]} 11... Nxd4 {[%clk 0:02:53.4]} 12. Bxd4 {[%clk 0:02:55.3]} 12... Qc7
{[%clk 0:02:54.3]} 13. Qe2 {[%clk 0:02:29.4]} 13... Bc5 {[%clk 0:02:54]} 14.
Bxc5 {[%clk 0:02:25.8]} 14... Qxc5+ {[%clk 0:02:54.3]} 15. Kh1 {[%clk
0:02:24.8]} 15... Bb7 {[%clk 0:02:54.4]} 16. Qg4 {[%clk 0:02:22.9]} 16... g6
{[%clk 0:02:53.1]} 17. Rf3 {[%clk 0:02:17.3]} 17... h5 {[%clk 0:02:46.1]} 18.
Qh4 {[%clk 0:02:13.5]} 18... Qe7 {[%clk 0:02:45.5]} 19. Qf2 {[%clk 0:02:11.4]}
19... Qc5 {[%clk 0:02:43.9]} 20. Qf1 {[%clk 0:02:08.1]} 20... O-O-O {[%clk
0:02:36.6]} 21. b4 {[%clk 0:01:56.8]} 21... Qxc3 {[%clk 0:02:32]} 22. Bxb5
{[%clk 0:01:57]} 22... Qc7 {[%clk 0:02:08.9]} 23. Bxa6 {[%clk 0:01:57.1]} 23...
Qb6 {[%clk 0:02:05.3]} 24. Rc3+ {[%clk 0:01:42.9]} 24... Kb8 {[%clk 0:02:05]}
25. Bd3 {[%clk 0:01:33.3]} 25... Rc8 {[%clk 0:02:03.5]} 26. Rb3 {[%clk
0:01:33.9]} 26... d4 {[%clk 0:01:59.1]} 27. a4 {[%clk 0:01:34]} 27... Bd5 {[%clk
0:01:58.7]} 28. Rb2 {[%clk 0:01:34.5]} 28... Qc7 {[%clk 0:01:57.7]} 29. Ba6
{[%clk 0:01:27.3]} 29... Bb7 {[%clk 0:01:51.8]} 30. a5 {[%clk 0:01:22.8]} 30...
Bxa6 {[%clk 0:01:27.9]} 31. Qxa6 {[%clk 0:01:22.5]} 31... Qc6 {[%clk 0:01:28.4]}
32. Qe2 {[%clk 0:01:14.3]} 32... Qc4 {[%clk 0:01:26.3]} 33. Qd1 {[%clk
0:01:04.6]} 33... Ka8 {[%clk 0:01:10]} 34. b5 {[%clk 0:01:02.8]} 34... Nc5
{[%clk 0:01:09.3]} 35. b6 {[%clk 0:01:02.4]} 35... Kb7 {[%clk 0:01:09]} 36. Qf3+
{[%clk 0:00:50.7]} 36... Qd5 {[%clk 0:00:55.9]} 37. a6+ {[%clk 0:00:50.6]} 37...
Nxa6 {[%clk 0:00:54]} 38. Qa3 {[%clk 0:00:51.3]} 38... Ra8 {[%clk 0:00:20.8]}
39. Qe7+ {[%clk 0:00:51.2]} 39... Kb8 {[%clk 0:00:21.1]} 40. Rxa6 {[%clk
0:00:48.6]} 40... Rxa6 {[%clk 0:00:19.5]} 41. Qc7+ {[%clk 0:00:44.5]} 41... Ka8
{[%clk 0:00:19.5]} 42. b7+ {[%clk 0:00:44.9]} 42... Ka7 {[%clk 0:00:19.8]} 43.
b8=Q# {[%clk 0:00:44.6]} 1-0

[Event "Early-Titled-Tuesday-Blitz-March-19-2024"]
[Site "Chess.com"]
[Date "2024.03.19"]
[Round "9"]
[White "2KTNGO"]
[Black "wonderfultime"]
[Result "0-1"]
[WhiteElo "2578"]
[BlackElo "3065"]
[TimeControl "180+1"]
[EndTime "9:44:29 PDT"]
[Termination "wonderfultime won on time"]

1. d4 {[%clk 0:03:00.9]} 1... d5 {[%clk 0:02:55.6]} 2. Nf3 {[%clk 0:02:58.6]}
2... Nf6 {[%clk 0:02:54.4]} 3. Bf4 {[%clk 0:02:57.4]} 3... c5 {[%clk 0:02:52.4]}
4. e3 {[%clk 0:02:57.1]} 4... Qb6 {[%clk 0:02:53]} 5. Nc3 {[%clk 0:02:51]} 5...
Bd7 {[%clk 0:02:53]} 6. Rb1 {[%clk 0:02:48.2]} 6... e6 {[%clk 0:02:51.7]} 7. Ne5
{[%clk 0:02:45.5]} 7... Bd6 {[%clk 0:02:50.4]} 8. Qd2 {[%clk 0:02:38.1]} 8... a6
{[%clk 0:02:46.9]} 9. Be2 {[%clk 0:02:36.6]} 9... Qc7 {[%clk 0:02:43.5]} 10. Bg3
{[%clk 0:02:28.4]} 10... O-O {[%clk 0:02:41.5]} 11. O-O {[%clk 0:02:27]} 11...
Nc6 {[%clk 0:02:37.3]} 12. f4 {[%clk 0:02:16.4]} 12... cxd4 {[%clk 0:02:35.6]}
13. exd4 {[%clk 0:02:04.2]} 13... Nxd4 {[%clk 0:02:34.8]} 14. Bd3 {[%clk
0:02:00.4]} 14... Nb5 {[%clk 0:02:30.8]} 15. Nxd7 {[%clk 0:01:47.9]} 15... Qxd7
{[%clk 0:02:29.1]} 16. Nxb5 {[%clk 0:01:31.9]} 16... axb5 {[%clk 0:02:28.3]} 17.
a3 {[%clk 0:01:31.9]} 17... Qc6 {[%clk 0:02:17.2]} 18. Qe2 {[%clk 0:01:27.6]}
18... b4 {[%clk 0:02:12.4]} 19. axb4 {[%clk 0:01:27.2]} 19... Bxb4 {[%clk
0:02:11.9]} 20. f5 {[%clk 0:01:26.4]} 20... exf5 {[%clk 0:02:08.9]} 21. Rxf5
{[%clk 0:01:23.6]} 21... Ne4 {[%clk 0:02:08]} 22. Rbf1 {[%clk 0:01:10.4]} 22...
Rae8 {[%clk 0:02:02.8]} 23. Qg4 {[%clk 0:00:48.6]} 23... g6 {[%clk 0:01:53.3]}
24. Bh4 {[%clk 0:00:31]} 24... Qe6 {[%clk 0:01:43.5]} 25. h3 {[%clk 0:00:19.1]}
25... Bc5+ {[%clk 0:01:31]} 26. Kh1 {[%clk 0:00:18.1]} 26... Be7 {[%clk
0:01:29.4]} 27. Bxe7 {[%clk 0:00:16.9]} 27... Rxe7 {[%clk 0:01:30.3]} 28. Bxe4
{[%clk 0:00:13.2]} 28... dxe4 {[%clk 0:01:31.2]} 29. Rb5 {[%clk 0:00:12.6]}
29... Qxg4 {[%clk 0:01:26.7]} 30. hxg4 {[%clk 0:00:12.4]} 30... Rd8 {[%clk
0:01:26.6]} 31. Re1 {[%clk 0:00:10.2]} 31... Rd2 {[%clk 0:01:24.7]} 32. c3
{[%clk 0:00:10]} 32... e3 {[%clk 0:01:24.7]} 33. Kg1 {[%clk 0:00:10]} 33... Re4
{[%clk 0:01:15]} 34. g5 {[%clk 0:00:09.3]} 34... Rg4 {[%clk 0:01:10.5]} 35. Rxe3
{[%clk 0:00:09.2]} 35... Rgxg2+ {[%clk 0:01:11.1]} 36. Kf1 {[%clk 0:00:09.4]}
36... Rdf2+ {[%clk 0:01:09.6]} 37. Ke1 {[%clk 0:00:09.1]} 37... Rxb2 {[%clk
0:01:10.5]} 38. Rxb2 {[%clk 0:00:08]} 38... Rxb2 {[%clk 0:01:11.4]} 39. Re5
{[%clk 0:00:06.6]} 39... Kg7 {[%clk 0:01:10.4]} 40. Rc5 {[%clk 0:00:06]} 40...
h6 {[%clk 0:01:07.7]} 41. gxh6+ {[%clk 0:00:03.2]} 41... Kxh6 {[%clk 0:01:07.6]}
0-1

[Event "Early-Titled-Tuesday-Blitz-March-19-2024"]
[Site "Chess.com"]
[Date "2024.03.19"]
[Round "9"]
[White "Orest_Vovk"]
[Black "diamonds13"]
[Result "0-1"]
[WhiteElo "2500"]
[BlackElo "2350"]
[TimeControl "180+1"]
[EndTime "9:44:29 PDT"]
[Termination "diamonds13 won by resignation"]

1. g4 {[%clk 0:02:53.8]} 1... d5 {[%clk 0:02:59]} 2. h3 {[%clk 0:02:51.4]} 2...
e5 {[%clk 0:02:59.1]} 3. Bg2 {[%clk 0:02:51.5]} 3... c6 {[%clk 0:02:58.1]} 4. d4
{[%clk 0:02:51.7]} 4... e4 {[%clk 0:02:57.5]} 5. c4 {[%clk 0:02:51.6]} 5... Bd6
{[%clk 0:02:55.7]} 6. Nc3 {[%clk 0:02:51.8]} 6... Ne7 {[%clk 0:02:55.7]} 7. Qb3
{[%clk 0:02:51.6]} 7... a5 {[%clk 0:02:49]} 8. a4 {[%clk 0:02:46.5]} 8... Na6
{[%clk 0:02:43.6]} 9. cxd5 {[%clk 0:02:39.4]} 9... cxd5 {[%clk 0:02:43.4]} 10.
Bg5 {[%clk 0:02:39.5]} 10... Nb4 {[%clk 0:02:41.4]} 11. Nb5 {[%clk 0:02:24.2]}
11... O-O {[%clk 0:02:33.5]} 12. Nxd6 {[%clk 0:02:15.8]} 12... Qxd6 {[%clk
0:02:33.2]} 13. Bxe7 {[%clk 0:02:11.9]} 13... Qxe7 {[%clk 0:02:32.6]} 14. f3
{[%clk 0:02:12.3]} 14... b6 {[%clk 0:02:30.4]} 15. Kf2 {[%clk 0:01:56.5]} 15...
Re8 {[%clk 0:02:17.4]} 16. Kg3 {[%clk 0:01:54.5]} 16... Ba6 {[%clk 0:02:06]} 17.
f4 {[%clk 0:01:38.5]} 17... g5 {[%clk 0:02:05.2]} 18. e3 {[%clk 0:01:32.9]}
18... Nd3 {[%clk 0:01:52.5]} 19. Ne2 {[%clk 0:01:17.9]} 19... Rac8 {[%clk
0:01:47.4]} 20. h4 {[%clk 0:00:55.8]} 20... gxf4+ {[%clk 0:01:43.9]} 21. Nxf4
{[%clk 0:00:54.6]} 21... Nxf4 {[%clk 0:01:42.1]} 22. exf4 {[%clk 0:00:54.1]}
22... Rc6 {[%clk 0:01:33.3]} 23. Qe3 {[%clk 0:00:50.1]} 23... Rec8 {[%clk
0:01:29.5]} 24. Rhc1 {[%clk 0:00:40.8]} 24... Bd3 {[%clk 0:01:28.3]} 25. Rxc6
{[%clk 0:00:34.8]} 25... Rxc6 {[%clk 0:01:28.2]} 26. Bf1 {[%clk 0:00:20.9]}
26... Bxf1 {[%clk 0:01:08]} 27. Rxf1 {[%clk 0:00:21.8]} 27... Qb4 {[%clk
0:01:07.6]} 28. f5 {[%clk 0:00:19.4]} 28... f6 {[%clk 0:01:05.6]} 29. Rc1 {[%clk
0:00:12.6]} 29... Qd6+ {[%clk 0:00:56]} 30. Kh3 {[%clk 0:00:08.6]} 30... Qc7
{[%clk 0:00:48.2]} 31. Rxc6 {[%clk 0:00:07.6]} 31... Qxc6 {[%clk 0:00:48.5]} 32.
g5 {[%clk 0:00:08.1]} 32... Qc2 {[%clk 0:00:43.8]} 33. gxf6 {[%clk 0:00:05.5]}
33... Qd3 {[%clk 0:00:42.7]} 34. Qxd3 {[%clk 0:00:01.4]} 34... exd3 {[%clk
0:00:42.5]} 0-1

[Event "Early-Titled-Tuesday-Blitz-March-19-2024"]
[Site "Chess.com"]
[Date "2024.03.19"]
[Round "9"]
[White "AndresDelgado77"]
[Black "FARIZA2018"]
[Result "1-0"]
[WhiteElo "2336"]
[BlackElo "2527"]
[TimeControl "180+1"]
[EndTime "9:44:34 PDT"]
[Termination "AndresDelgado77 won on time"]

1. e4 {[%clk 0:02:59.6]} 1... e5 {[%clk 0:03:00.2]} 2. Bc4 {[%clk 0:02:50.8]}
2... Nf6 {[%clk 0:02:59.9]} 3. d3 {[%clk 0:02:48.4]} 3... Nc6 {[%clk 0:02:59.7]}
4. Nc3 {[%clk 0:02:48]} 4... Bc5 {[%clk 0:02:58.6]} 5. f4 {[%clk 0:02:48.3]}
5... d6 {[%clk 0:02:55.9]} 6. Nf3 {[%clk 0:01:10.7]} 6... O-O {[%clk 0:02:45.1]}
7. f5 {[%clk 0:01:09.6]} 7... h6 {[%clk 0:02:44.4]} 8. h3 {[%clk 0:00:50]} 8...
Na5 {[%clk 0:02:42.6]} 9. g4 {[%clk 0:00:43.6]} 9... Nxc4 {[%clk 0:02:36.7]} 10.
dxc4 {[%clk 0:00:43.8]} 10... Bb4 {[%clk 0:02:36.6]} 11. Qe2 {[%clk 0:00:39.3]}
11... Bxc3+ {[%clk 0:02:24.2]} 12. bxc3 {[%clk 0:00:38.8]} 12... Nd7 {[%clk
0:02:15.6]} 13. g5 {[%clk 0:00:31.4]} 13... h5 {[%clk 0:01:38.6]} 14. Nh4 {[%clk
0:00:29.5]} 14... Nc5 {[%clk 0:01:37.4]} 15. Qxh5 {[%clk 0:00:26.3]} 15... Nxe4
{[%clk 0:01:30.4]} 16. O-O {[%clk 0:00:19.3]} 16... Re8 {[%clk 0:00:27.6]} 17.
Be3 {[%clk 0:00:16.9]} 17... Ng3 {[%clk 0:00:16.3]} 18. Qg4 {[%clk 0:00:16.4]}
18... Nxf1 {[%clk 0:00:15.4]} 19. Rxf1 {[%clk 0:00:16]} 19... d5 {[%clk
0:00:14.3]} 20. Qh5 {[%clk 0:00:13.6]} 20... d4 {[%clk 0:00:06.2]} 21. Ng6
{[%clk 0:00:13.2]} 21... fxg6 {[%clk 0:00:04.4]} 22. fxg6 {[%clk 0:00:13]} 1-0

[Event "Early-Titled-Tuesday-Blitz-March-19-2024"]
[Site "Chess.com"]
[Date "2024.03.19"]
[Round "9"]
[White "bulletteemo"]
[Black "jocmil"]
[Result "1-0"]
[WhiteElo "2621"]
[BlackElo "2757"]
[TimeControl "180+1"]
[EndTime "9:44:36 PDT"]
[Termination "bulletteemo won by resignation"]

1. e4 {[%clk 0:02:54.9]} 1... e5 {[%clk 0:02:59.8]} 2. Nf3 {[%clk 0:02:53.4]}
2... Nc6 {[%clk 0:03:00.3]} 3. Bb5 {[%clk 0:02:52.1]} 3... a6 {[%clk 0:03:00]}
4. Ba4 {[%clk 0:02:52.4]} 4... Nf6 {[%clk 0:02:59.7]} 5. O-O {[%clk 0:02:53.1]}
5... Be7 {[%clk 0:02:59.3]} 6. d3 {[%clk 0:02:53.2]} 6... b5 {[%clk 0:02:59]} 7.
Bb3 {[%clk 0:02:53.4]} 7... O-O {[%clk 0:02:59.6]} 8. c3 {[%clk 0:02:54.1]} 8...
d6 {[%clk 0:02:52.8]} 9. a4 {[%clk 0:02:54.1]} 9... Bd7 {[%clk 0:02:40.5]} 10.
Bc2 {[%clk 0:02:52.7]} 10... b4 {[%clk 0:02:38.4]} 11. a5 {[%clk 0:02:52.1]}
11... Rb8 {[%clk 0:02:37]} 12. Nbd2 {[%clk 0:02:51]} 12... Qc8 {[%clk
0:02:34.8]} 13. Nc4 {[%clk 0:02:44.6]} 13... Bg4 {[%clk 0:02:22.5]} 14. Ne3
{[%clk 0:02:43.4]} 14... Be6 {[%clk 0:02:18.5]} 15. d4 {[%clk 0:02:29.9]} 15...
exd4 {[%clk 0:01:47.3]} 16. cxd4 {[%clk 0:02:28.4]} 16... d5 {[%clk 0:01:47.2]}
17. e5 {[%clk 0:02:22.2]} 17... Ne4 {[%clk 0:01:47]} 18. Bd3 {[%clk 0:02:22.2]}
18... f5 {[%clk 0:01:42.4]} 19. exf6 {[%clk 0:02:11.6]} 19... Bxf6 {[%clk
0:01:38.4]} 20. Re1 {[%clk 0:01:18.8]} 20... Ng5 {[%clk 0:01:33.6]} 21. Nxg5
{[%clk 0:01:08.3]} 21... Bxg5 {[%clk 0:01:34.5]} 22. Qh5 {[%clk 0:00:42.9]}
22... Bh6 {[%clk 0:01:27.4]} 23. Nxd5 {[%clk 0:00:42.2]} 23... Bg4 {[%clk
0:00:20.2]} 24. Qh4 {[%clk 0:00:42.3]} 24... Qd7 {[%clk 0:00:18.4]} 25. Bxh6
{[%clk 0:00:31.2]} 25... gxh6 {[%clk 0:00:13.4]} 26. Ne7+ {[%clk 0:00:09]} 26...
Nxe7 {[%clk 0:00:11.6]} 27. Rxe7 {[%clk 0:00:09.5]} 27... Qd6 {[%clk 0:00:11.3]}
28. Qxg4+ {[%clk 0:00:07.2]} 1-0

[Event "Early-Titled-Tuesday-Blitz-March-19-2024"]
[Site "Chess.com"]
[Date "2024.03.19"]
[Round "9"]
[White "Janh4"]
[Black "chessjazda"]
[Result "1-0"]
[WhiteElo "2163"]
[BlackElo "2280"]
[TimeControl "180+1"]
[EndTime "9:44:38 PDT"]
[Termination "Janh4 won by checkmate"]

1. d4 {[%clk 0:03:00.9]} 1... d6 {[%clk 0:02:57.4]} 2. Nc3 {[%clk 0:03:00.4]}
2... c6 {[%clk 0:02:57.3]} 3. Bf4 {[%clk 0:03:00.2]} 3... Nd7 {[%clk 0:02:55.1]}
4. e3 {[%clk 0:03:00.4]} 4... Qa5 {[%clk 0:02:55]} 5. Nf3 {[%clk 0:03:00.1]}
5... e5 {[%clk 0:02:55.1]} 6. dxe5 {[%clk 0:02:58.7]} 6... dxe5 {[%clk
0:02:55.3]} 7. Bg3 {[%clk 0:02:57.8]} 7... Bb4 {[%clk 0:02:50.9]} 8. Qd2 {[%clk
0:02:26.9]} 8... Ne7 {[%clk 0:02:48.5]} 9. Bc4 {[%clk 0:02:22.5]} 9... O-O
{[%clk 0:02:45.8]} 10. O-O {[%clk 0:02:20.3]} 10... b5 {[%clk 0:02:42.3]} 11.
Bb3 {[%clk 0:02:12.1]} 11... Ng6 {[%clk 0:02:29.6]} 12. Rfd1 {[%clk 0:01:52.4]}
12... Bxc3 {[%clk 0:02:24.1]} 13. bxc3 {[%clk 0:01:50.2]} 13... Re8 {[%clk
0:02:09.2]} 14. Ng5 {[%clk 0:01:39.7]} 14... Re7 {[%clk 0:02:05.5]} 15. Qd6
{[%clk 0:01:03.2]} 15... Qb6 {[%clk 0:01:50.5]} 16. h4 {[%clk 0:01:00]} 16... c5
{[%clk 0:01:49.2]} 17. Bxf7+ {[%clk 0:00:33.1]} 17... Kf8 {[%clk 0:01:37.4]} 18.
Bxg6 {[%clk 0:00:20.1]} 18... Qxd6 {[%clk 0:01:30.4]} 19. Nxh7+ {[%clk 0:00:19]}
19... Kg8 {[%clk 0:01:28.4]} 20. Rxd6 {[%clk 0:00:19.1]} 20... a5 {[%clk
0:01:08.2]} 21. Rad1 {[%clk 0:00:18.9]} 21... Ra7 {[%clk 0:01:08.2]} 22. h5
{[%clk 0:00:16.6]} 22... b4 {[%clk 0:01:05.8]} 23. Bh4 {[%clk 0:00:15.2]} 23...
Rf7 {[%clk 0:01:00.4]} 24. Bxf7+ {[%clk 0:00:14.7]} 24... Kxf7 {[%clk
0:01:01.1]} 25. Ng5+ {[%clk 0:00:15.1]} 25... Ke7 {[%clk 0:01:00.8]} 26. Ne6+
{[%clk 0:00:13]} 26... Kf7 {[%clk 0:01:01.1]} 27. Nd8+ {[%clk 0:00:10.3]} 27...
Ke8 {[%clk 0:00:59.8]} 28. Nc6 {[%clk 0:00:09.2]} 28... Rc7 {[%clk 0:01:00.5]}
29. Nxa5 {[%clk 0:00:08.7]} 29... bxc3 {[%clk 0:01:00.1]} 30. Nc4 {[%clk
0:00:08.4]} 30... Bb7 {[%clk 0:00:59.6]} 31. f3 {[%clk 0:00:05.3]} 31... e4
{[%clk 0:00:58.1]} 32. f4 {[%clk 0:00:04.8]} 32... Bc8 {[%clk 0:00:58.7]} 33.
Ne5 {[%clk 0:00:04.7]} 33... Nf6 {[%clk 0:00:58.8]} 34. Bxf6 {[%clk 0:00:03.9]}
34... gxf6 {[%clk 0:00:58.6]} 35. Rxf6 {[%clk 0:00:04.5]} 35... Rh7 {[%clk
0:00:54.9]} 36. h6 {[%clk 0:00:04.1]} 36... Ke7 {[%clk 0:00:54.2]} 37. Rdd6
{[%clk 0:00:03.2]} 37... Ke8 {[%clk 0:00:49.8]} 38. Nc6 {[%clk 0:00:03.3]} 38...
Ra7 {[%clk 0:00:44.5]} 39. Rd8# {[%clk 0:00:03.1]} 1-0

[Event "Early-Titled-Tuesday-Blitz-March-19-2024"]
[Site "Chess.com"]
[Date "2024.03.19"]
[Round "9"]
[White "bubeliang"]
[Black "Sam_ChessMood"]
[Result "0-1"]
[WhiteElo "2803"]
[BlackElo "2947"]
[TimeControl "180+1"]
[EndTime "9:44:39 PDT"]
[Termination "Sam_ChessMood won by resignation"]

1. d4 {[%clk 0:03:00.9]} 1... Nf6 {[%clk 0:02:59.7]} 2. Nc3 {[%clk 0:03:00.8]}
2... d5 {[%clk 0:02:59.2]} 3. Bf4 {[%clk 0:03:00.9]} 3... a6 {[%clk 0:02:59.4]}
4. e3 {[%clk 0:02:58.8]} 4... b5 {[%clk 0:02:58.8]} 5. Nf3 {[%clk 0:02:58.8]}
5... Nbd7 {[%clk 0:02:55]} 6. Ne5 {[%clk 0:02:57.5]} 6... Bb7 {[%clk 0:02:54.1]}
7. a3 {[%clk 0:02:55.9]} 7... e6 {[%clk 0:02:48.9]} 8. Bd3 {[%clk 0:02:55.4]}
8... c5 {[%clk 0:02:47.9]} 9. dxc5 {[%clk 0:02:51.4]} 9... Bxc5 {[%clk
0:02:45.1]} 10. O-O {[%clk 0:02:50.9]} 10... O-O {[%clk 0:02:44.8]} 11. Qf3
{[%clk 0:02:49.3]} 11... Nxe5 {[%clk 0:02:37.9]} 12. Bxe5 {[%clk 0:02:47.7]}
12... Bd6 {[%clk 0:02:34.1]} 13. Bxf6 {[%clk 0:02:26.7]} 13... Qxf6 {[%clk
0:02:34.1]} 14. Qxf6 {[%clk 0:02:25.8]} 14... gxf6 {[%clk 0:02:35]} 15. e4
{[%clk 0:02:26.4]} 15... d4 {[%clk 0:02:26]} 16. Ne2 {[%clk 0:02:26]} 16... Bc5
{[%clk 0:02:25.2]} 17. f4 {[%clk 0:02:22.7]} 17... Rac8 {[%clk 0:01:58.7]} 18.
f5 {[%clk 0:02:21.7]} 18... e5 {[%clk 0:01:41.7]} 19. Rf3 {[%clk 0:02:19.2]}
19... Rfd8 {[%clk 0:01:32.5]} 20. Raf1 {[%clk 0:02:16.4]} 20... Bxe4 {[%clk
0:01:23.8]} 21. Rh3 {[%clk 0:01:37.5]} 21... Bxd3 {[%clk 0:00:52.6]} 22. cxd3
{[%clk 0:01:38.4]} 22... e4 {[%clk 0:00:53.2]} 23. Nf4 {[%clk 0:01:33.1]} 23...
e3 {[%clk 0:00:52.1]} 24. Nh5 {[%clk 0:01:00.7]} 24... Be7 {[%clk 0:00:51.4]}
25. Rg3+ {[%clk 0:00:54.2]} 25... Kh8 {[%clk 0:00:51.2]} 26. Rg7 {[%clk
0:00:52.3]} 26... Rf8 {[%clk 0:00:49.9]} 27. h3 {[%clk 0:00:40.8]} 27... b4
{[%clk 0:00:48.7]} 28. Rf4 {[%clk 0:00:26.4]} 28... Rc1+ {[%clk 0:00:45]} 29.
Kh2 {[%clk 0:00:26.7]} 29... e2 {[%clk 0:00:39.4]} 30. Rxh7+ {[%clk 0:00:07.6]}
30... Kxh7 {[%clk 0:00:39]} 31. Ng3 {[%clk 0:00:08.5]} 31... Rg8 {[%clk
0:00:24.1]} 32. Nxe2 {[%clk 0:00:08.8]} 32... Bd6 {[%clk 0:00:23.8]} 0-1